[Event "*** Titled Tuesday Blitz"]
[Site "Chess.com"]
[Date "2018.12.04"]
[Round "10"]
[White "gmjlh"]
[Black "severomorskij"]
[Result "1/2-1/2"]
[WhiteElo "2705"]
[BlackElo "2761"]
[TimeControl "180+2"]
[EndTime "15:24:36 PST"]
[Termination "Game drawn by stalemate"]

1. d4 {[%clk 0:03:01.9]} 1... Nf6 {[%clk 0:03:00.2]} 2. c4 {[%clk 0:03:02.6]}
2... e6 {[%clk 0:03:01.4]} 3. Nf3 {[%clk 0:03:03.3]} 3... Bb4+ {[%clk
0:03:01.6]} 4. Nbd2 {[%clk 0:03:03.5]} 4... b6 {[%clk 0:02:59.3]} 5. e3 {[%clk
0:03:00.4]} 5... Bb7 {[%clk 0:02:58.4]} 6. Be2 {[%clk 0:03:01.1]} 6... O-O
{[%clk 0:02:50.9]} 7. O-O {[%clk 0:03:02.2]} 7... d5 {[%clk 0:02:51.6]} 8. a3
{[%clk 0:02:59.1]} 8... Be7 {[%clk 0:02:52]} 9. b4 {[%clk 0:02:58.4]} 9... c5
{[%clk 0:02:45.9]} 10. bxc5 {[%clk 0:02:30]} 10... bxc5 {[%clk 0:02:47.8]} 11.
Rb1 {[%clk 0:02:31]} 11... Qc7 {[%clk 0:02:41.6]} 12. Bb2 {[%clk 0:02:31.9]}
12... Nbd7 {[%clk 0:02:38]} 13. dxc5 {[%clk 0:02:23.7]} 13... dxc4 {[%clk
0:02:22.4]} 14. Nxc4 {[%clk 0:02:14.9]} 14... Bxc5 {[%clk 0:02:17]} 15. Nfe5
{[%clk 0:01:27.9]} 15... Rfd8 {[%clk 0:02:09.6]} 16. Bf3 {[%clk 0:01:20.7]}
16... Nxe5 {[%clk 0:01:33]} 17. Bxe5 {[%clk 0:01:22.6]} 17... Rxd1 {[%clk
0:01:31.5]} 18. Bxc7 {[%clk 0:01:23.3]} 18... Bxf3 {[%clk 0:01:23.1]} 19. Rfxd1
{[%clk 0:01:17.9]} 19... Bxd1 {[%clk 0:01:23.6]} 20. Rxd1 {[%clk 0:01:19.6]}
20... Rc8 {[%clk 0:01:19.1]} 21. Rd8+ {[%clk 0:01:18.9]} 21... Rxd8 {[%clk
0:01:19.5]} 22. Bxd8 {[%clk 0:01:20.8]} 22... Nd5 {[%clk 0:01:07.8]} 23. Ba5
{[%clk 0:01:19.7]} 23... Kf8 {[%clk 0:00:46.1]} 24. Kf1 {[%clk 0:01:20.1]} 24...
Ke7 {[%clk 0:00:46.5]} 25. Ke2 {[%clk 0:01:21.3]} 25... f5 {[%clk 0:00:43.9]}
26. f3 {[%clk 0:01:09.5]} 26... g5 {[%clk 0:00:41.5]} 27. h3 {[%clk 0:01:07.6]}
27... h5 {[%clk 0:00:40.4]} 28. g4 {[%clk 0:01:08.2]} 28... Nf6 {[%clk
0:00:30.3]} 29. Bc3 {[%clk 0:01:00.7]} 29... Nd5 {[%clk 0:00:28.9]} 30. Be5
{[%clk 0:00:54.6]} 30... Nb6 {[%clk 0:00:22.7]} 31. Nxb6 {[%clk 0:00:55]} 31...
Bxb6 {[%clk 0:00:22.9]} 32. gxh5 {[%clk 0:00:44]} 32... Kf7 {[%clk 0:00:18.2]}
33. Kd3 {[%clk 0:00:39.5]} 33... a6 {[%clk 0:00:17.5]} 34. a4 {[%clk 0:00:37.3]}
34... Bd8 {[%clk 0:00:07.7]} 35. Kc4 {[%clk 0:00:20.7]} 35... Be7 {[%clk
0:00:08.8]} 36. Bd4 {[%clk 0:00:14.3]} 36... Bd6 {[%clk 0:00:08.1]} 37. Bc5
{[%clk 0:00:13.3]} 37... Bc7 {[%clk 0:00:08.7]} 38. Ba7 {[%clk 0:00:09.5]} 38...
Kg7 {[%clk 0:00:07.2]} 39. Kc5 {[%clk 0:00:10.1]} 39... Kh6 {[%clk 0:00:08.4]}
40. Kc6 {[%clk 0:00:11.5]} 40... Bg3 {[%clk 0:00:06.2]} 41. Kd7 {[%clk
0:00:12.2]} 41... e5 {[%clk 0:00:04.8]} 42. Ke6 {[%clk 0:00:13.1]} 42... e4
{[%clk 0:00:05.3]} 43. fxe4 {[%clk 0:00:12.9]} 43... fxe4 {[%clk 0:00:07.2]} 44.
Kf5 {[%clk 0:00:11]} 44... Kxh5 {[%clk 0:00:08.4]} 45. Kxe4 {[%clk 0:00:12.1]}
45... Kh4 {[%clk 0:00:09.3]} 46. Kf5 {[%clk 0:00:12]} 46... Bf2 {[%clk 0:00:08]}
47. Bd4 {[%clk 0:00:12.8]} 47... Kxh3 {[%clk 0:00:05.5]} 48. Kxg5 {[%clk
0:00:13.7]} 48... Kg3 {[%clk 0:00:04.6]} 49. a5 {[%clk 0:00:13]} 49... Kf3
{[%clk 0:00:05.4]} 50. Kf5 {[%clk 0:00:14]} 50... Bxe3 {[%clk 0:00:06.5]} 51.
Bxe3 {[%clk 0:00:15]} 51... Kxe3 {[%clk 0:00:07.9]} 52. Ke5 {[%clk 0:00:16.9]}
52... Kf3 {[%clk 0:00:08.2]} 53. Kd5 {[%clk 0:00:16.7]} 53... Kf4 {[%clk
0:00:09.6]} 54. Kc6 {[%clk 0:00:18.2]} 54... Ke5 {[%clk 0:00:11.1]} 55. Kb6
{[%clk 0:00:19.4]} 55... Kd6 {[%clk 0:00:12.5]} 56. Kxa6 {[%clk 0:00:20.9]}
56... Kc7 {[%clk 0:00:13.4]} 57. Ka7 {[%clk 0:00:22.5]} 57... Kc8 {[%clk
0:00:14.6]} 58. a6 {[%clk 0:00:23]} 58... Kc7 {[%clk 0:00:15.9]} 59. Ka8 {[%clk
0:00:24.3]} 59... Kc8 {[%clk 0:00:17.3]} 60. Ka7 {[%clk 0:00:25.1]} 60... Kc7
{[%clk 0:00:18.6]} 61. Ka8 {[%clk 0:00:26.6]} 61... Kc8 {[%clk 0:00:20]} 62. Ka7
{[%clk 0:00:28]} 62... Kc7 {[%clk 0:00:21.4]} 63. Ka8 {[%clk 0:00:29]} 63... Kb6
{[%clk 0:00:22.3]} 64. a7 {[%clk 0:00:22.2]} 64... Kc7 {[%clk 0:00:23.3]}
1/2-1/2

[Event "*** Titled Tuesday Blitz"]
[Site "Chess.com"]
[Date "2018.12.04"]
[Round "10"]
[White "kacprekt"]
[Black "BlackBoarder"]
[Result "1-0"]
[WhiteElo "2385"]
[BlackElo "2472"]
[TimeControl "180+2"]
[EndTime "15:24:39 PST"]
[Termination "kacprekt won by resignation"]

1. e4 {[%clk 0:03:01.9]} 1... e6 {[%clk 0:03:00.4]} 2. Qe2 {[%clk 0:03:01.8]}
2... b6 {[%clk 0:02:58.7]} 3. g3 {[%clk 0:03:01.4]} 3... c5 {[%clk 0:02:57.7]}
4. Bg2 {[%clk 0:03:02.4]} 4... Nc6 {[%clk 0:02:57.5]} 5. Nf3 {[%clk 0:03:03.5]}
5... g6 {[%clk 0:02:54.4]} 6. O-O {[%clk 0:03:03.4]} 6... Bg7 {[%clk 0:02:55.8]}
7. c3 {[%clk 0:03:04.4]} 7... Nge7 {[%clk 0:02:56.8]} 8. Rd1 {[%clk 0:03:04.5]}
8... O-O {[%clk 0:02:57.3]} 9. d4 {[%clk 0:03:05.1]} 9... cxd4 {[%clk 0:02:58]}
10. cxd4 {[%clk 0:03:06.3]} 10... d5 {[%clk 0:02:59.4]} 11. e5 {[%clk
0:03:06.6]} 11... a5 {[%clk 0:02:59.1]} 12. Nc3 {[%clk 0:03:03.9]} 12... Ba6
{[%clk 0:02:59.9]} 13. Qe1 {[%clk 0:03:04.3]} 13... Rc8 {[%clk 0:03:00.2]} 14.
Bg5 {[%clk 0:03:04.8]} 14... Qd7 {[%clk 0:02:58.8]} 15. Bf6 {[%clk 0:03:01.2]}
15... Rc7 {[%clk 0:02:42.2]} 16. h4 {[%clk 0:02:55.7]} 16... Rfc8 {[%clk
0:02:37.2]} 17. h5 {[%clk 0:02:54.9]} 17... Nb4 {[%clk 0:02:14.9]} 18. Qd2
{[%clk 0:02:36.1]} 18... Bf8 {[%clk 0:02:03.3]} 19. a3 {[%clk 0:02:13]} 19...
Nbc6 {[%clk 0:01:36.2]} 20. Qg5 {[%clk 0:01:57.9]} 20... Nf5 {[%clk 0:01:06.3]}
21. g4 {[%clk 0:01:49]} 21... Bh6 {[%clk 0:00:57.8]} 22. gxf5 {[%clk 0:01:44.1]}
22... Bxg5 {[%clk 0:00:58.5]} 23. Nxg5 {[%clk 0:01:43.9]} 23... h6 {[%clk
0:00:50.2]} 24. Nh3 {[%clk 0:01:40.8]} 24... gxf5 {[%clk 0:00:43.9]} 25. Nf4
{[%clk 0:01:39.5]} 25... Kh7 {[%clk 0:00:43.9]} 26. Kh2 {[%clk 0:01:33.9]} 26...
Rg8 {[%clk 0:00:44.7]} 27. Bh3 {[%clk 0:01:29.1]} 27... Rcc8 {[%clk 0:00:43.1]}
28. Na4 {[%clk 0:01:16.1]} 28... Rb8 {[%clk 0:00:31.3]} 29. Rac1 {[%clk
0:01:12.2]} 29... Nxe5 {[%clk 0:00:23.6]} 30. Bxe5 {[%clk 0:01:10.6]} 30... Qxa4
{[%clk 0:00:24.7]} 31. Rc7 {[%clk 0:01:08.3]} 31... Rbf8 {[%clk 0:00:19.5]} 32.
Nxe6 {[%clk 0:01:06.9]} 32... Qxd1 {[%clk 0:00:20.1]} 33. Bxf5+ {[%clk
0:01:06.8]} 33... Rg6 {[%clk 0:00:20.6]} 34. Nxf8+ {[%clk 0:00:58.3]} 34... Kg8
{[%clk 0:00:21.9]} 35. hxg6 {[%clk 0:00:48.5]} 35... Qh5+ {[%clk 0:00:16]} 36.
Bh3 {[%clk 0:00:48.6]} 36... Kxf8 {[%clk 0:00:03.4]} 37. Rxf7+ {[%clk
0:00:29.6]} 37... Kg8 {[%clk 0:00:04.5]} 38. Rg7+ {[%clk 0:00:29.2]} 38... Kf8
{[%clk 0:00:05.4]} 39. Rf7+ {[%clk 0:00:22.4]} 39... Kg8 {[%clk 0:00:06.6]} 40.
Ra7 {[%clk 0:00:23.1]} 40... Bc8 {[%clk 0:00:04.4]} 41. Rg7+ {[%clk 0:00:20.2]}
41... Kf8 {[%clk 0:00:05.4]} 42. Rf7+ {[%clk 0:00:21.4]} 42... Ke8 {[%clk
0:00:06.5]} 43. Rf3 {[%clk 0:00:22.4]} 43... Bxh3 {[%clk 0:00:03.8]} 44. Rxh3
{[%clk 0:00:23.2]} 44... Qxg6 {[%clk 0:00:04.5]} 45. Bf4 {[%clk 0:00:21.7]}
45... Qe4 {[%clk 0:00:04.8]} 46. Re3 {[%clk 0:00:21.5]} 46... h5 {[%clk
0:00:03]} 47. Rxe4+ {[%clk 0:00:22.4]} 47... dxe4 {[%clk 0:00:04.9]} 48. Kg3
{[%clk 0:00:23.5]} 48... Kf7 {[%clk 0:00:06.4]} 49. Kh4 {[%clk 0:00:24.7]} 49...
Ke6 {[%clk 0:00:07.4]} 50. Kxh5 {[%clk 0:00:25.6]} 50... Kd5 {[%clk 0:00:08.9]}
51. Be3 {[%clk 0:00:26.9]} 51... Kc4 {[%clk 0:00:09.4]} 52. Kg5 {[%clk
0:00:27.6]} 52... b5 {[%clk 0:00:11]} 53. Kf5 {[%clk 0:00:27.8]} 53... b4 {[%clk
0:00:12.5]} 54. axb4 {[%clk 0:00:28.6]} 54... axb4 {[%clk 0:00:14.4]} 55. Kxe4
{[%clk 0:00:29.3]} 55... Kb3 {[%clk 0:00:16.3]} 56. d5 {[%clk 0:00:29.8]} 56...
Kxb2 {[%clk 0:00:18.2]} 57. d6 {[%clk 0:00:31.1]} 57... b3 {[%clk 0:00:20.1]}
58. d7 {[%clk 0:00:32.3]} 58... Ka2 {[%clk 0:00:21.8]} 59. d8=Q {[%clk
0:00:33.1]} 59... b2 {[%clk 0:00:23.7]} 60. Qa5+ {[%clk 0:00:33.9]} 60... Kb1
{[%clk 0:00:25.3]} 61. Qc3 {[%clk 0:00:29.1]} 61... Ka2 {[%clk 0:00:26.2]} 62.
Qc4+ {[%clk 0:00:30.2]} 62... Ka1 {[%clk 0:00:27.1]} 63. Qa4+ {[%clk 0:00:30.5]}
63... Kb1 {[%clk 0:00:28.5]} 64. Bd4 {[%clk 0:00:27.7]} 64... Kc1 {[%clk
0:00:29.2]} 65. Qa3 {[%clk 0:00:27]} 65... Kd1 {[%clk 0:00:29.1]} 66. Qxb2
{[%clk 0:00:25.8]} 1-0

[Event "*** Titled Tuesday Blitz"]
[Site "Chess.com"]
[Date "2018.12.04"]
[Round "10"]
[White "Andrew-FB00"]
[Black "ChessGamingPro"]
[Result "1-0"]
[WhiteElo "1797"]
[BlackElo "1655"]
[TimeControl "180+2"]
[EndTime "15:24:40 PST"]
[Termination "Andrew-FB00 won on time"]

1. e4 {[%clk 0:03:01.9]} 1... e5 {[%clk 0:03:00.4]} 2. Nf3 {[%clk 0:03:02.2]}
2... Nc6 {[%clk 0:03:01.6]} 3. Bb5 {[%clk 0:03:02.1]} 3... a6 {[%clk 0:03:01.3]}
4. Ba4 {[%clk 0:03:02.7]} 4... Nf6 {[%clk 0:03:02.6]} 5. d4 {[%clk 0:03:02.4]}
5... exd4 {[%clk 0:03:01.4]} 6. O-O {[%clk 0:03:02.3]} 6... d6 {[%clk
0:03:01.3]} 7. Nxd4 {[%clk 0:02:57.4]} 7... Bd7 {[%clk 0:03:01.1]} 8. Re1 {[%clk
0:02:53.4]} 8... Be7 {[%clk 0:03:01.7]} 9. Nc3 {[%clk 0:02:47]} 9... O-O {[%clk
0:03:00.8]} 10. Nxc6 {[%clk 0:02:45.2]} 10... Bxc6 {[%clk 0:03:00.4]} 11. Bxc6
{[%clk 0:02:44.7]} 11... bxc6 {[%clk 0:03:02.3]} 12. Bg5 {[%clk 0:02:44.3]}
12... Qd7 {[%clk 0:03:02.5]} 13. e5 {[%clk 0:02:35.9]} 13... Ne8 {[%clk
0:03:02.1]} 14. Bxe7 {[%clk 0:02:21.1]} 14... Qxe7 {[%clk 0:03:04]} 15. exd6
{[%clk 0:02:17.1]} 15... Qxd6 {[%clk 0:03:02.5]} 16. Qf3 {[%clk 0:02:10.7]}
16... Nf6 {[%clk 0:03:01.1]} 17. Ne4 {[%clk 0:02:05.1]} 17... Nxe4 {[%clk
0:03:00.8]} 18. Qxe4 {[%clk 0:02:05.4]} 18... Qf6 {[%clk 0:02:45.2]} 19. b3
{[%clk 0:02:00.1]} 19... h6 {[%clk 0:02:44.1]} 20. c4 {[%clk 0:01:58.9]} 20...
Rfe8 {[%clk 0:02:42]} 21. Qxe8+ {[%clk 0:01:49.9]} 21... Rxe8 {[%clk 0:02:41.6]}
22. Rxe8+ {[%clk 0:01:50]} 22... Kh7 {[%clk 0:02:42.8]} 23. Rae1 {[%clk
0:01:50.2]} 23... Qb2 {[%clk 0:02:40.2]} 24. R8e2 {[%clk 0:01:48.4]} 24... Qa3
{[%clk 0:02:37.6]} 25. g3 {[%clk 0:01:47.4]} 25... a5 {[%clk 0:02:37.8]} 26. Rd1
{[%clk 0:01:39.6]} 26... a4 {[%clk 0:02:31.6]} 27. Rd3 {[%clk 0:01:40]} 27...
axb3 {[%clk 0:02:19.1]} 28. axb3 {[%clk 0:01:39.7]} 28... c5 {[%clk 0:02:17.1]}
29. Re7 {[%clk 0:01:33.4]} 29... Qb2 {[%clk 0:02:00.8]} 30. Rde3 {[%clk
0:01:29.1]} 30... Qb1+ {[%clk 0:01:42.7]} 31. Kg2 {[%clk 0:01:29.1]} 31... Qf5
{[%clk 0:01:28.1]} 32. Rxc7 {[%clk 0:01:25.8]} 32... h5 {[%clk 0:01:23.1]} 33.
Ree7 {[%clk 0:01:21.8]} 33... Kg8 {[%clk 0:01:05.6]} 34. h4 {[%clk 0:00:50.9]}
34... Qc2 {[%clk 0:00:37.4]} 35. Rxf7 {[%clk 0:00:44.5]} 35... Qxb3 {[%clk
0:00:32.7]} 36. Rxg7+ {[%clk 0:00:43.3]} 36... Kh8 {[%clk 0:00:33.2]} 37. Rh7+
{[%clk 0:00:38]} 37... Kg8 {[%clk 0:00:32.5]} 38. Rxh5 {[%clk 0:00:36.9]} 38...
Qxc4 {[%clk 0:00:27.6]} 39. Rg5+ {[%clk 0:00:34.4]} 39... Kf8 {[%clk 0:00:19.7]}
40. Rf5+ {[%clk 0:00:34.8]} 40... Kg8 {[%clk 0:00:20.2]} 41. Rcxc5 {[%clk
0:00:35.2]} 41... Qe4+ {[%clk 0:00:20.3]} 42. Kh3 {[%clk 0:00:35.5]} 42... Qh1+
{[%clk 0:00:19.5]} 43. Kg4 {[%clk 0:00:36.3]} 43... Qe4+ {[%clk 0:00:20.7]} 44.
Kg5 {[%clk 0:00:34]} 44... Qe7+ {[%clk 0:00:20.9]} 45. Kf4 {[%clk 0:00:31.6]}
45... Qd6+ {[%clk 0:00:21.5]} 46. Kf3 {[%clk 0:00:30.6]} 46... Qd3+ {[%clk
0:00:22.2]} 47. Kg2 {[%clk 0:00:29.7]} 47... Qe4+ {[%clk 0:00:22]} 48. Kh2
{[%clk 0:00:30.6]} 48... Qe2 {[%clk 0:00:18.4]} 49. h5 {[%clk 0:00:30.3]} 49...
Qe4 {[%clk 0:00:15.6]} 50. h6 {[%clk 0:00:26]} 50... Kh7 {[%clk 0:00:16.1]} 51.
Rf6 {[%clk 0:00:18]} 51... Qe7 {[%clk 0:00:08.2]} 52. Rcf5 {[%clk 0:00:18.1]}
52... Qb4 {[%clk 0:00:04.8]} 53. Rf4 {[%clk 0:00:16.9]} 53... Qb5 {[%clk
0:00:04.4]} 54. Rh4 {[%clk 0:00:15.8]} 54... Qb4 {[%clk 0:00:03.6]} 55. Rf7+
{[%clk 0:00:15.9]} 55... Kh8 {[%clk 0:00:03.5]} 56. Rg7 {[%clk 0:00:14.1]} 56...
Qd6 {[%clk 0:00:03.8]} 57. Rb7 {[%clk 0:00:13]} 1-0

[Event "*** Titled Tuesday Blitz"]
[Site "Chess.com"]
[Date "2018.12.04"]
[Round "10"]
[White "AsaHoffmann"]
[Black "rasmussvane"]
[Result "0-1"]
[WhiteElo "2222"]
[BlackElo "2689"]
[TimeControl "180+2"]
[EndTime "15:24:56 PST"]
[Termination "rasmussvane won by resignation"]

1. d4 {[%clk 0:02:38.4]} 1... Nf6 {[%clk 0:03:00.7]} 2. Bg5 {[%clk 0:02:35.3]}
2... d5 {[%clk 0:03:01.6]} 3. Bxf6 {[%clk 0:02:35.6]} 3... gxf6 {[%clk
0:03:03.5]} 4. e3 {[%clk 0:02:36.1]} 4... c5 {[%clk 0:03:04.9]} 5. c4 {[%clk
0:02:34.9]} 5... dxc4 {[%clk 0:03:04]} 6. Bxc4 {[%clk 0:02:34.6]} 6... cxd4
{[%clk 0:03:05.5]} 7. exd4 {[%clk 0:02:34.1]} 7... Bg7 {[%clk 0:03:07.1]} 8. Nf3
{[%clk 0:02:34.5]} 8... O-O {[%clk 0:03:08.6]} 9. Nc3 {[%clk 0:02:35]} 9... Nc6
{[%clk 0:03:09.6]} 10. h3 {[%clk 0:02:34.9]} 10... f5 {[%clk 0:03:10.4]} 11. d5
{[%clk 0:02:32.8]} 11... Ne5 {[%clk 0:03:11.1]} 12. Bb3 {[%clk 0:02:31.9]} 12...
Nd7 {[%clk 0:03:02.2]} 13. O-O {[%clk 0:02:30.2]} 13... Nf6 {[%clk 0:03:02.5]}
14. Re1 {[%clk 0:02:28.3]} 14... a6 {[%clk 0:03:03.7]} 15. a4 {[%clk 0:02:26.5]}
15... Qd6 {[%clk 0:03:03.8]} 16. Qd3 {[%clk 0:02:22.1]} 16... Bd7 {[%clk
0:03:04.2]} 17. Rad1 {[%clk 0:02:15.9]} 17... Rad8 {[%clk 0:03:04.7]} 18. Nd4
{[%clk 0:02:13.2]} 18... Qf4 {[%clk 0:03:02.8]} 19. Qf3 {[%clk 0:02:09.8]} 19...
Qxf3 {[%clk 0:03:02.8]} 20. Nxf3 {[%clk 0:02:10.3]} 20... Rfe8 {[%clk 0:03:03]}
21. Ne5 {[%clk 0:02:07.7]} 21... Bc8 {[%clk 0:03:00.1]} 22. a5 {[%clk
0:02:02.8]} 22... Nd7 {[%clk 0:02:53.4]} 23. Nc4 {[%clk 0:01:58.5]} 23... Nc5
{[%clk 0:02:54]} 24. Ba2 {[%clk 0:01:57.7]} 24... Bd7 {[%clk 0:02:46.3]} 25. Nb6
{[%clk 0:01:56.9]} 25... Bf6 {[%clk 0:02:45.5]} 26. Nxd7 {[%clk 0:01:55.3]}
26... Rxd7 {[%clk 0:02:43.2]} 27. Bb1 {[%clk 0:01:53.9]} 27... f4 {[%clk
0:02:38.8]} 28. Ne4 {[%clk 0:01:49.9]} 28... Nxe4 {[%clk 0:02:36.6]} 29. Rxe4
{[%clk 0:01:49.5]} 29... Bxb2 {[%clk 0:02:36.6]} 30. Rxf4 {[%clk 0:01:49.5]}
30... Red8 {[%clk 0:02:34.2]} 31. Be4 {[%clk 0:01:47.1]} 31... Bg7 {[%clk
0:02:00.5]} 32. Rb1 {[%clk 0:01:43.6]} 32... Rc7 {[%clk 0:01:59.4]} 33. g3
{[%clk 0:01:38.6]} 33... h6 {[%clk 0:02:00.4]} 34. Bf3 {[%clk 0:01:36.9]} 34...
Rdd7 {[%clk 0:02:00.2]} 35. Bh5 {[%clk 0:01:36.5]} 35... e5 {[%clk 0:01:55.6]}
36. dxe6 {[%clk 0:01:35.9]} 36... fxe6 {[%clk 0:01:57.5]} 37. Bg4 {[%clk
0:01:36.7]} 37... Re7 {[%clk 0:01:57.3]} 38. Re1 {[%clk 0:01:36.5]} 38... Rc6
{[%clk 0:01:54.9]} 39. Rfe4 {[%clk 0:01:36.9]} 39... Kf7 {[%clk 0:01:56.2]} 40.
Bf3 {[%clk 0:01:34.6]} 40... Rc5 {[%clk 0:01:56]} 41. Rf4+ {[%clk 0:01:31.3]}
41... Bf6 {[%clk 0:01:54.8]} 42. Bg4 {[%clk 0:01:29.1]} 42... Rxa5 {[%clk
0:01:53.8]} 43. Rfe4 {[%clk 0:01:24.4]} 43... e5 {[%clk 0:01:53.4]} 44. Rb1
{[%clk 0:01:19.5]} 44... b5 {[%clk 0:01:46.2]} 45. h4 {[%clk 0:01:16.9]} 45...
Ra3 {[%clk 0:01:44.2]} 46. Be2 {[%clk 0:01:15.5]} 46... Rc7 {[%clk 0:01:44.4]}
47. h5 {[%clk 0:01:12.8]} 47... Rac3 {[%clk 0:01:45.3]} 48. Kg2 {[%clk
0:01:12.6]} 48... Rc1 {[%clk 0:01:43.4]} 49. Rb2 {[%clk 0:01:11.6]} 49... R7c2
{[%clk 0:01:43]} 50. Rb3 {[%clk 0:01:11.5]} 50... Rc3 {[%clk 0:01:39.7]} 51. Rb2
{[%clk 0:01:11.9]} 51... R1c2 {[%clk 0:01:40.8]} 52. Rb1 {[%clk 0:01:12.5]}
52... Ke6 {[%clk 0:01:41.2]} 53. Ra1 {[%clk 0:01:12.9]} 53... Rc6 {[%clk
0:01:40.1]} 54. Re3 {[%clk 0:01:13.2]} 54... Kd6 {[%clk 0:01:33.4]} 55. Bf3
{[%clk 0:01:13.7]} 55... Rb6 {[%clk 0:01:34.1]} 56. Rea3 {[%clk 0:01:12.9]}
56... e4 {[%clk 0:01:34.6]} 57. Bxe4 {[%clk 0:01:11.1]} 57... Bxa1 {[%clk
0:01:34.9]} 58. Bxc2 {[%clk 0:01:11.5]} 58... Bf6 {[%clk 0:01:33.3]} 59. f4
{[%clk 0:01:11.5]} 59... b4 {[%clk 0:01:31.5]} 60. Ra4 {[%clk 0:01:12]} 60... b3
{[%clk 0:01:31.2]} 61. Bxb3 {[%clk 0:01:12.7]} 61... Rxb3 {[%clk 0:01:32]} 62.
Rxa6+ {[%clk 0:01:13.1]} 62... Ke7 {[%clk 0:01:33.3]} 63. g4 {[%clk 0:01:13.1]}
63... Rb5 {[%clk 0:01:22]} 64. Kf3 {[%clk 0:01:13.1]} 64... Kf7 {[%clk 0:01:22]}
65. Rc6 {[%clk 0:01:13.3]} 65... Rb4 {[%clk 0:01:20.7]} 66. Rd6 {[%clk
0:01:12.5]} 66... Kg7 {[%clk 0:01:18.8]} 67. Rc6 {[%clk 0:01:12.7]} 67... Rb7
{[%clk 0:01:17.2]} 68. Rd6 {[%clk 0:01:00]} 68... Rf7 {[%clk 0:01:17.8]} 69. Rc6
{[%clk 0:00:59.6]} 69... Bg5 {[%clk 0:01:16.4]} 70. Rc4 {[%clk 0:00:58.2]} 70...
Kh7 {[%clk 0:01:14.5]} 71. Rb4 {[%clk 0:00:58.2]} 71... Bf6 {[%clk 0:01:14.4]}
72. Rc4 {[%clk 0:00:58.8]} 72... Kg7 {[%clk 0:01:15.1]} 73. Rb4 {[%clk
0:00:59.1]} 73... Rd7 {[%clk 0:01:16.4]} 74. Rb3 {[%clk 0:00:59.1]} 74... Be7
{[%clk 0:01:17.2]} 75. Re3 {[%clk 0:00:58.8]} 75... Bd8 {[%clk 0:01:18.2]} 76.
Rc3 {[%clk 0:00:56.9]} 76... Bc7 {[%clk 0:01:19.3]} 77. Rb3 {[%clk 0:00:56.5]}
77... Rd4 {[%clk 0:01:18]} 78. Rb7 {[%clk 0:00:53.9]} 78... Rxf4+ {[%clk
0:01:18.7]} 79. Ke3 {[%clk 0:00:54.3]} 79... Rf7 {[%clk 0:01:19.8]} 80. Ke4
{[%clk 0:00:54.5]} 80... Kf6 {[%clk 0:01:17.4]} 81. Ra7 {[%clk 0:00:53.7]} 81...
Kg5 {[%clk 0:01:17.1]} 82. Ra6 {[%clk 0:00:51.5]} 82... Bf4 {[%clk 0:01:09.4]}
83. Rg6+ {[%clk 0:00:50]} 83... Kh4 {[%clk 0:01:10.4]} 84. Rg8 {[%clk
0:00:49.6]} 84... Bg5 {[%clk 0:01:11]} 85. Rg6 {[%clk 0:00:47.6]} 85... Kxg4
{[%clk 0:01:11.9]} 86. Rg8 {[%clk 0:00:47.4]} 86... Kxh5 {[%clk 0:01:13]} 0-1